bitfinex/quotes_BTCUSD_20230107
["timestamp","ask_amount","ask_price","bid_price","bid_amount"]
[1673108031499,3.22772699,16947.0,16946.0,0.0134871]
[1673108031760,3.52772699,16947.0,16946.0,0.0134871]
[1673108032283,3.00246998,16947.0,16946.0,0.0134871]
[1673108032525,3.63508975,16947.0,16946.0,0.0134871]
[1673108033286,3.33508975,16947.0,16946.0,0.0134871]
[1673108033772,3.02741475,16947.0,16946.0,0.0134871]
[1673108034057,2.39479498,16947.0,16946.0,0.0134871]
[1673108035281,3.06673146,16947.0,16946.0,0.0134871]
[1673108035538,3.67440646,16947.0,16946.0,0.0134871]
[1673108036541,3.37440646,16947.0,16946.0,0.0134871]
[1673108038842,3.67440646,16947.0,16946.0,0.0134871]
[1673108039102,3.37440646,16947.0,16946.0,0.0134871]
[1673108039352,3.06673146,16947.0,16946.0,0.0134871]
[1673108039605,3.67440646,16947.0,16946.0,0.0134871]
[1673108039828,4.27154012,16947.0,16946.0,0.0134871]
[1673108040369,3.67440646,16947.0,16946.0,0.0134871]
[1673108040625,3.97153323,16947.0,16946.0,0.0134871]
[1673108045229,3.97153323,16947.0,16946.0,0.0132871]
[1673108047838,3.59959675,16947.0,16946.0,0.0132871]
[1673108048078,3.00246998,16947.0,16946.0,0.0132871]
[1673108048335,2.39479498,16947.0,16946.0,0.0132871]
[1673108048591,3.00682155,16947.0,16946.0,0.0132871]
[1673108048844,3.61449655,16947.0,16946.0,0.0132871]
[1673108049900,0.7,16946.0,16942.0,0.89661021]
[1673108050116,0.53069486,16944.0,16943.0,0.00096097]
[1673108050372,3.39593397,16944.0,16943.0,0.00096097]
[1673108050615,2.55058108,16944.0,16943.0,0.00096097]
[1673108050861,2.55058108,16944.0,16942.0,0.20891021]
[1673108051190,0.7,16943.0,16942.0,0.20891021]
[1673108051625,1.14217429,16943.0,16942.0,0.20891021]
[1673108052417,0.7,16943.0,16942.0,0.20891021]
[1673108053205,0.105,16943.0,16942.0,0.20891021]
[1673108053431,0.805,16943.0,16942.0,0.20891021]
[1673108053686,1.24710362,16943.0,16942.0,0.20891021]
[1673108054478,0.805,16943.0,16942.0,0.20891021]
[1673108054721,0.14198578,16943.0,16942.0,0.20891021]
[1673108054988,0.58410301,16943.0,16942.0,0.20891021]
[1673108066727,0.14198578,16943.0,16942.0,0.20891021]
[1673108066980,0.58410977,16943.0,16942.0,0.20891021]
[1673108071070,1.23239929,16943.0,16942.0,0.20891021]
[1673108071329,0.7902753,16943.0,16942.0,0.20891021]
[1673108071619,0.14198578,16943.0,16942.0,0.20891021]
[1673108073545,0.84198578,16943.0,16942.0,0.20882691]
[1673108076242,1.28410799,16943.0,16942.0,0.20882691]
[1673108076498,0.84198578,16943.0,16942.0,0.20882691]
[1673108077345,1.28411097,16943.0,16942.0,0.20882691]
[1673108078120,0.84198578,16943.0,16942.0,0.20882691]
[1673108082484,0.84182997,16943.0,16942.0,0.20882691]
[1673108083456,1.49011949,16943.0,16942.0,0.20882691]
[1673108083984,0.84182997,16943.0,16942.0,0.20882691]
[1673108084319,1.49011949,16943.0,16942.0,0.20882691]
[1673108085639,2.02081435,16943.0,16942.0,0.20882691]
[1673108086929,2.01417624,16943.0,16942.0,0.20882691]
[1673108087148,1.48348138,16943.0,16942.0,0.20882691]
[1673108087662,0.83519186,16943.0,16942.0,0.20882691]
[1673108087918,1.36588672,16943.0,16942.0,0.20882691]
[1673108088207,2.01417624,16943.0,16942.0,0.20882691]
[1673108088653,1.36588672,16943.0,16942.0,0.20882691]
[1673108088872,2.01417624,16943.0,16942.0,0.20882691]
[1673108092442,1.31417624,16943.0,16942.0,0.20882691]
[1673108092927,0.66588672,16943.0,16942.0,0.20882691]
[1673108093437,1.31417624,16943.0,16942.0,0.20882691]
[1673108094197,0.66588672,16943.0,16942.0,0.20882691]
[1673108095687,1.31417624,16943.0,16942.0,0.20882691]
[1673108095973,0.66588672,16943.0,16942.0,0.20882691]
[1673108097012,1.31417624,16943.0,16942.0,0.20882691]
[1673108097257,0.66588672,16943.0,16942.0,0.20882691]
[1673108097809,1.31417624,16943.0,16942.0,0.20882691]
[1673108098050,0.66588672,16943.0,16942.0,0.20882691]
[1673108101652,1.31417624,16943.0,16942.0,0.20882691]
[1673108106649,0.78348138,16943.0,16942.0,0.20882691]
[1673108106901,0.13519186,16943.0,16942.0,0.20882691]
[1673108108606,0.66588672,16943.0,16942.0,0.20882691]
[1673108108821,1.31417624,16943.0,16942.0,0.20882691]
[1673108111506,1.31417624,16943.0,16942.0,0.20871416]
[1673108112509,0.78348138,16943.0,16942.0,0.20871416]
[1673108113857,1.31417624,16943.0,16942.0,0.20871416]
[1673108115418,0.78348138,16943.0,16942.0,0.20871416]
[1673108115686,0.13519186,16943.0,16942.0,0.20871416]
[1673108116238,0.78348138,16943.0,16942.0,0.20871416]
[1673108116475,1.31417624,16943.0,16942.0,0.20871416]
[1673108118297,0.66588672,16943.0,16942.0,0.20871416]
[1673108119862,1.31417624,16943.0,16942.0,0.20871416]
[1673108120385,0.66588672,16943.0,16942.0,0.20871416]
[1673108120898,1.31417624,16943.0,16942.0,0.20871416]
[1673108121634,0.66588672,16943.0,16942.0,0.20871416]
[1673108121900,1.31417624,16943.0,16942.0,0.20871416]
[1673108122175,0.66588672,16943.0,16942.0,0.20871416]
[1673108122736,0.78348138,16943.0,16942.0,0.20871416]
[1673108122953,0.13519186,16943.0,16942.0,0.20871416]
[1673108123498,1.31417624,16943.0,16942.0,0.20871416]
[1673108123757,0.66588672,16943.0,16942.0,0.20871416]
[1673108124022,0.13519186,16943.0,16942.0,0.20871416]
[1673108127814,0.13519186,16943.0,16942.0,0.70472616]
[1673108128749,0.13519186,16943.0,16942.0,0.20871416]
[1673108130722,0.78348138,16943.0,16942.0,0.20871416]
[1673108131039,0.13519186,16943.0,16942.0,0.20871416]
[1673108131292,0.13519186,16943.0,16942.0,0.70472616]
[1673108131562,0.13519186,16943.0,16942.0,0.20871416]
[1673108131790,0.78348138,16943.0,16942.0,0.20871416]
[1673108132511,0.13519186,16943.0,16942.0,0.20871416]
[1673108132726,0.15157333,16943.0,16942.0,0.20859646]
[1673108132997,1.49986285,16943.0,16942.0,0.20859646]
[1673108133989,0.85157333,16943.0,16942.0,0.20859646]
[1673108135055,2.66773591,16943.0,16942.0,0.20859646]
[1673108135308,2.13704105,16943.0,16942.0,0.20859646]
[1673108135864,2.66773591,16943.0,16942.0,0.20859646]
[1673108136624,2.13704105,16943.0,16942.0,0.20859646]
[1673108138105,1.48875153,16943.0,16942.0,0.20859646]
[1673108138367,2.13704105,16943.0,16942.0,0.20859646]
[1673108138872,2.66773591,16943.0,16942.0,0.20859646]
[1673108141568,0.78875153,16943.0,16942.0,0.20859646]
[1673108143999,1.43704105,16943.0,16942.0,0.20859646]
[1673108145707,0.78875153,16943.0,16942.0,0.20859646]
[1673108151005,0.78875153,16943.0,16942.0,0.18359646]
[1673108151222,1.43704105,16943.0,16942.0,0.18359646]
[1673108151726,0.78875153,16943.0,16942.0,0.18359646]
[1673108158360,1.23105751,16943.0,16942.0,0.18359646]
[1673108158625,1.23105638,16943.0,16942.0,0.18359646]
[1673108158853,0.78875153,16943.0,16942.0,0.18359646]
[1673108159600,1.23105407,16943.0,16942.0,0.18359646]
[1673108161857,0.78875153,16943.0,16942.0,0.18359646]
[1673108162963,1.23105068,16943.0,16942.0,0.18359646]
[1673108163175,0.78875153,16943.0,16942.0,0.18359646]
[1673108164197,1.23104912,16943.0,16942.0,0.18359646]
[1673108165257,1.23104912,16943.0,16942.0,0.67960846]
[1673108165715,1.23104912,16943.0,16942.0,0.18359646]
[1673108166919,1.23104912,16943.0,16942.0,0.67960846]
[1673108167139,1.23104912,16943.0,16942.0,0.18359646]
[1673108167884,1.23104912,16943.0,16942.0,0.67960846]
[1673108168390,1.23104912,16943.0,16942.0,0.18359646]
[1673108168900,1.23104912,16943.0,16942.0,0.67960846]
[1673108169433,1.23104912,16943.0,16942.0,0.18359646]
[1673108170703,0.78875153,16943.0,16942.0,0.18359646]
[1673108171707,1.23103904,16943.0,16942.0,0.18359646]
[1673108171960,0.78875153,16943.0,16942.0,0.18359646]
[1673108172732,1.23104109,16943.0,16942.0,0.18359646]
[1673108173235,0.78875153,16943.0,16942.0,0.18359646]
[1673108174890,0.78875153,16943.0,16942.0,0.18352109]
[1673108177473,1.23106686,16943.0,16942.0,0.18352109]
[1673108177729,1.87935638,16943.0,16942.0,0.18352109]
[1673108177977,1.43704105,16943.0,16942.0,0.18352109]
[1673108178224,0.78875153,16943.0,16942.0,0.18352109]
[1673108179608,1.43704105,16943.0,16942.0,0.18352109]
[1673108180157,0.78875153,16943.0,16942.0,0.18352109]
[1673108180760,1.43704105,16943.0,16942.0,0.18352109]
[1673108181538,0.78875153,16943.0,16942.0,0.18352109]
[1673108181799,0.78875153,16943.0,16942.0,0.67953309]
[1673108182028,0.78875153,16943.0,16942.0,0.18352109]
[1673108182542,0.78875153,16943.0,16942.0,0.67953309]
[1673108182782,0.78875153,16943.0,16942.0,0.18352109]
[1673108183290,0.78875153,16943.0,16942.0,0.67953309]
[1673108184312,0.78875153,16943.0,16942.0,0.18352109]
[1673108184772,0.78875153,16943.0,16942.0,0.67953309]
[1673108185282,0.78875153,16943.0,16942.0,0.18352109]
[1673108185792,0.78875153,16943.0,16942.0,0.67953309]
[1673108186306,0.78875153,16943.0,16942.0,0.18352109]
[1673108186778,0.78875153,16943.0,16942.0,0.67953309]
[1673108187749,0.78875153,16943.0,16942.0,0.18352109]
[1673108188528,0.78875153,16943.0,16942.0,0.67953309]
[1673108189032,0.78875153,16943.0,16942.0,0.18352109]
[1673108191013,1.43704105,16943.0,16942.0,0.18352109]
[1673108191534,0.78875153,16943.0,16942.0,0.18352109]
[1673108191785,1.23113023,16943.0,16942.0,0.67943309]
[1673108192045,1.23113023,16943.0,16942.0,0.18342109]
[1673108193852,0.78875153,16943.0,16942.0,0.18342109]
[1673108194119,0.78875153,16943.0,16942.0,0.67943309]
[1673108194352,1.43704105,16943.0,16942.0,0.67943309]
[1673108194608,0.78875153,16943.0,16942.0,0.18342109]
[1673108195122,0.78875153,16943.0,16942.0,0.67943309]
[1673108195422,0.78875153,16943.0,16942.0,0.18342109]
[1673108195627,1.43704105,16943.0,16942.0,0.18342109]
[1673108195883,0.78875153,16943.0,16942.0,0.18342109]
[1673108196128,0.78875153,16943.0,16942.0,0.67943309]
[1673108196664,1.23114006,16943.0,16942.0,0.18342109]
[1673108204666,1.23114006,16943.0,16942.0,0.67943309]
[1673108206101,1.20614006,16943.0,16942.0,0.18342109]
[1673108206352,1.20614006,16943.0,16942.0,0.67943309]
[1673108225381,1.20614006,16943.0,16942.0,0.18342109]
[1673108230602,1.20614006,16943.0,16942.0,0.67943309]
[1673108230861,1.20614006,16943.0,16942.0,0.67931903]
[1673108231118,1.90614006,16943.0,16942.0,0.67931903]
[1673108231374,1.90614006,16943.0,16942.0,0.18330703]
[1673108231631,1.20614006,16943.0,16942.0,0.18330703]
[1673108231850,1.20614006,16943.0,16942.0,0.67931903]
[1673108254011,1.90614006,16943.0,16942.0,0.67924357]
[1673108254279,1.90614006,16943.0,16942.0,0.18323157]
[1673108254990,1.20614006,16943.0,16942.0,0.18323157]
[1673108255266,1.20614006,16943.0,16942.0,0.67924357]
[1673108259818,1.20614006,16943.0,16942.0,0.18323157]
[1673108262126,1.19771218,16943.0,16942.0,0.18323157]
[1673108263879,1.1976042,16943.0,16942.0,0.18323157]
[1673108272744,0.9977422,16943.0,16942.0,0.18323157]
[1673108273212,0.9976287,16943.0,16942.0,0.18323157]
[1673108273932,1.04970575,16943.0,16942.0,0.18323157]
[1673108281348,1.04970575,16943.0,16942.0,0.67924357]
[1673108281877,1.04970575,16943.0,16942.0,0.18323157]
[1673108283462,1.04970575,16943.0,16942.0,0.67924357]
[1673108284004,1.04970575,16943.0,16942.0,0.18323157]
[1673108284254,1.24777522,16943.0,16942.0,0.18323157]
[1673108284535,0.60731722,16943.0,16942.0,0.18323157]
[1673108285032,1.04974278,16943.0,16942.0,0.18323157]
[1673108285282,0.60731722,16943.0,16942.0,0.18323157]
[1673108286069,1.24777522,16943.0,16942.0,0.18323157]
[1673108286292,0.60731722,16943.0,16942.0,0.18323157]
[1673108286539,1.24777522,16943.0,16942.0,0.18323157]
[1673108287569,0.60731722,16943.0,16942.0,0.18323157]
[1673108293770,1.24777522,16943.0,16942.0,0.18323157]
[1673108294309,0.60731722,16943.0,16942.0,0.18323157]
[1673108294571,1.30731722,16943.0,16942.0,0.18315467]
[1673108294844,1.94777522,16943.0,16942.0,0.18315467]
[1673108295873,1.30731722,16943.0,16942.0,0.18315467]
[1673108296627,0.60731722,16943.0,16942.0,0.18315467]
[1673108297376,1.04969697,16943.0,16942.0,0.18315467]
[1673108297608,1.04969974,16943.0,16942.0,0.18315467]
[1673108297864,0.60731722,16943.0,16942.0,0.18315467]
[1673108298610,1.04970715,16943.0,16942.0,0.18315467]
[1673108300855,0.60731722,16943.0,16942.0,0.18315467]
[1673108301370,1.04971225,16943.0,16942.0,0.18315467]
[1673108301627,1.04971403,16943.0,16942.0,0.18315467]
[1673108301946,0.60731722,16943.0,16942.0,0.18315467]
[1673108302146,0.84840433,16943.0,16942.0,0.74550379]
[1673108302444,0.84840433,16943.0,16942.0,1.24151579]
[1673108302911,0.84840433,16943.0,16942.0,0.74550379]
[1673108304304,0.84840433,16943.0,16942.0,1.83176479]
[1673108305569,1.11381192,16943.0,16942.0,1.83176479]
[1673108306615,0.84840433,16943.0,16942.0,1.83176479]
[1673108306878,1.11380131,16943.0,16942.0,1.83176479]
[1673108307149,1.11380052,16943.0,16942.0,1.83176479]
[1673108307421,1.11379882,16943.0,16942.0,1.33575279]
[1673108307682,1.11379882,16943.0,16942.0,1.83176479]
[1673108307942,0.84840433,16943.0,16942.0,1.33575279]
[1673108308214,0.84840433,16943.0,16942.0,1.83176479]
[1673108310368,1.11378821,16943.0,16942.0,1.83176479]
[1673108310873,0.67139003,16943.0,16942.0,1.83176479]
[1673108319916,0.67139003,16943.0,16942.0,1.83164886]
[1673108324215,0.84826578,16943.0,16942.0,1.83164886]
[1673108324467,0.84826682,16943.0,16942.0,1.83164886]
[1673108325461,0.67139003,16943.0,16942.0,1.83164886]
[1673108325710,0.84826055,16943.0,16942.0,1.83164886]
[1673108325972,0.22894757,16943.0,16942.0,2.42189786]
[1673108334954,0.22894757,16943.0,16942.0,1.92588586]
[1673108338734,0.49433145,16943.0,16942.0,1.92588586]
[1673108339505,0.49426134,16943.0,16942.0,1.92588586]
[1673108339756,0.22887746,16943.0,16942.0,1.92588586]
[1673108340262,0.49426134,16943.0,16942.0,1.92588586]
[1673108344918,0.22887746,16943.0,16942.0,1.92588586]
[1673108345144,0.49426134,16943.0,16942.0,1.92588586]
[1673108345874,0.22887746,16943.0,16942.0,1.92588586]
[1673108357376,0.22887746,16943.0,16942.0,2.42189786]
[1673108358934,0.22887746,16943.0,16942.0,2.59896085]
[1673108359185,0.05200694,16943.0,16942.0,2.59896085]
[1673108360414,0.22887746,16943.0,16942.0,2.42189786]
[1673108362722,0.22887746,16943.0,16942.0,2.59896085]
[1673108363217,0.22887746,16943.0,16942.0,2.42189786]
[1673108363472,0.22887746,16943.0,16942.0,2.59896085]
[1673108363714,0.22887746,16943.0,16942.0,2.42189786]
[1673108363986,0.22887746,16943.0,16942.0,2.59896085]
[1673108372636,0.22887746,16943.0,16942.0,2.42189786]
[1673108374893,0.22887746,16943.0,16942.0,2.59896085]
[1673108375175,0.22887746,16943.0,16942.0,2.42189786]
[1673108375419,0.22887746,16943.0,16942.0,2.59896085]
[1673108387760,0.05200694,16943.0,16942.0,2.59896085]
[1673108388014,0.22887746,16943.0,16942.0,2.59896085]
[1673108388776,0.22887746,16943.0,16942.0,2.10294885]
[1673108389103,0.22887746,16943.0,16942.0,2.59896085]
[1673108391774,0.22887746,16943.0,16942.0,2.10294885]
[1673108392029,0.22887746,16943.0,16942.0,2.59896085]
[1673108392284,0.22887746,16943.0,16942.0,2.10294885]
[1673108392542,0.22887746,16943.0,16942.0,2.59896085]
[1673108392809,0.05200694,16943.0,16942.0,2.86459901]
[1673108393120,0.05200694,16943.0,16942.0,3.91397263]
[1673108394517,0.05200694,16943.0,16942.0,4.0911107]
[1673108394740,0.05200694,16943.0,16942.0,4.3911107]
[1673108394908,0.05200694,16943.0,16942.0,4.0911107]
[1673108395377,0.05200694,16943.0,16942.0,3.91397263]
[1673108396295,0.05200694,16943.0,16942.0,4.21397263]
[1673108396529,0.05200694,16943.0,16942.0,4.09109442]
[1673108396778,0.05200694,16943.0,16942.0,4.39109429]
[1673108397029,0.05200694,16943.0,16942.0,4.21397263]
[1673108397270,0.05200694,16943.0,16942.0,4.39109416]
[1673108397513,0.05200694,16943.0,16942.0,4.21397263]
[1673108398295,0.05200694,16943.0,16942.0,4.39107967]
[1673108398538,0.05200694,16943.0,16942.0,4.09107967]
[1673108398782,0.05200694,16943.0,16942.0,3.73689545]
[1673108399978,0.05200694,16943.0,16942.0,4.09107967]
[1673108400223,0.05200694,16943.0,16942.0,4.39107967]
[1673108400446,0.05200694,16943.0,16942.0,4.03689545]
[1673108400688,0.05200694,16943.0,16942.0,3.73689545]
[1673108401168,0.05200694,16943.0,16942.0,4.39107967]
[1673108401884,0.17687052,16944.0,16942.0,4.39107967]
[1673108402353,0.17687052,16944.0,16943.0,0.49598]
[1673108402620,0.17687052,16944.0,16943.0,1.695035]
[1673108403129,0.17687052,16944.0,16943.0,2.191014]
[1673108403891,0.32004571,16944.0,16943.0,2.200014]
[1673108408473,0.32004571,16944.0,16943.0,1.704035]
[1673108408724,0.32004571,16944.0,16943.0,2.200014]
[1673108411041,0.31738705,16944.0,16943.0,2.200014]
[1673108415834,0.31738705,16944.0,16943.0,1.704035]
[1673108426320,0.58277093,16944.0,16943.0,1.704035]
[1673108431744,0.58277093,16944.0,16943.0,1.88114204]
[1673108431998,0.31738705,16944.0,16943.0,1.88114204]
[1673108432261,0.58277093,16944.0,16943.0,1.88114204]
[1673108437216,0.31738705,16944.0,16943.0,1.88114204]
[1673108439461,0.58277093,16944.0,16943.0,1.88114204]
[1673108439979,0.58277093,16944.0,16943.0,1.70391508]
[1673108441294,0.58009942,16944.0,16943.0,1.70391508]
[1673108444640,0.58009942,16944.0,16943.0,1.88102212]
[1673108444892,0.58009942,16944.0,16943.0,1.70391508]
[1673108447844,0.58009942,16944.0,16943.0,1.88102212]
[1673108449387,0.58009942,16944.0,16943.0,1.70391508]
[1673108450169,0.58009942,16944.0,16943.0,1.88102212]
[1673108451833,0.58009942,16944.0,16943.0,1.70391508]
[1673108452081,0.58009942,16944.0,16943.0,1.88102212]
[1673108458042,0.31471554,16944.0,16943.0,1.88102212]
[1673108460788,0.58009942,16944.0,16943.0,1.88102212]
[1673108463029,1.28009942,16944.0,16943.0,1.70385231]
[1673108463305,1.28009942,16944.0,16943.0,1.88095935]
[1673108463306,0.58009942,16944.0,16943.0,1.88095935]
[1673108463850,0.58009942,16944.0,16943.0,1.70385231]
[1673108465337,0.58009942,16944.0,16943.0,1.88095935]
[1673108466822,0.58009942,16944.0,16943.0,1.70385231]
[1673108467082,0.58009942,16944.0,16943.0,1.88095935]
[1673108477947,0.5800227,16944.0,16943.0,1.88095935]
[1673108479737,0.31463882,16944.0,16943.0,1.88095935]
[1673108480261,0.5800227,16944.0,16943.0,1.88095935]
[1673108481048,0.31463882,16944.0,16943.0,1.88095935]
[1673108486219,0.31463882,16944.0,16943.0,2.37693835]
[1673108486529,0.31463882,16944.0,16943.0,2.64257651]
[1673108486778,0.14317519,16944.0,16943.0,3.81479527]
[1673108487027,0.14317519,16944.0,16943.0,3.51479527]
[1673108489387,0.14317519,16944.0,16943.0,3.81479527]
[1673108489640,0.14317519,16944.0,16943.0,3.51479527]
[1673108489890,0.14317519,16944.0,16943.0,3.81479527]
[1673108490152,0.14317519,16944.0,16943.0,3.51479527]
[1673108492683,0.14289945,16944.0,16943.0,3.51479527]
[1673108500809,0.14289945,16944.0,16943.0,3.81479527]
[1673108507317,0.85967477,16946.0,16944.0,0.7]
[1673108507571,0.59429089,16946.0,16945.0,1.676202]
[1673108507818,0.44237477,16946.0,16945.0,1.671202]
[1673108508299,0.44237477,16946.0,16945.0,1.180288]
[1673108508809,0.44937477,16946.0,16945.0,1.190288]
[1673108509839,0.44937477,16946.0,16945.0,1.72090081]
[1673108511089,0.18399089,16946.0,16945.0,1.72090081]
[1673108511877,0.25183743,16946.0,16945.0,1.72090081]
[1673108515666,0.51722131,16946.0,16945.0,1.72090081]
[1673108522549,0.52623376,16946.0,16945.0,1.72090081]
[1673108529379,0.52534107,16946.0,16945.0,1.72090081]
[1673108533703,0.51834107,16946.0,16945.0,1.71090081]
[1673108533967,0.52434107,16946.0,16945.0,1.71890081]
[1673108534501,0.51834107,16946.0,16945.0,1.71090081]
[1673108534727,0.51834107,16946.0,16945.0,1.78490081]
[1673108536929,0.51834107,16946.0,16945.0,2.27581181]
[1673108553238,1.21834107,16946.0,16945.0,2.2757062]
[1673108553537,0.51834107,16946.0,16945.0,1.7847952]
[1673108553789,0.51834107,16946.0,16945.0,2.2757062]
[1673108563948,0.51834107,16946.0,16945.0,1.7847952]
[1673108564726,0.51834107,16946.0,16945.0,2.2757062]
[1673108567614,0.87227017,16946.0,16945.0,2.2757062]
[1673108567862,0.51834107,16946.0,16945.0,2.2757062]
[1673108572374,0.87227017,16946.0,16945.0,2.2757062]
[1673108572655,0.87227017,16946.0,16945.0,1.7847952]
[1673108573148,0.51834107,16946.0,16945.0,1.7847952]
[1673108573621,0.87227017,16946.0,16945.0,1.7847952]
[1673108575306,0.51834107,16946.0,16945.0,1.7847952]
[1673108575555,0.51834107,16946.0,16945.0,2.2757062]
[1673108577967,0.87227017,16946.0,16945.0,2.2757062]
[1673108578233,0.69617197,16946.0,16945.0,2.2757062]
[1673108578488,0.69617197,16946.0,16945.0,1.7847952]
[1673108579454,0.87318627,16946.0,16945.0,1.25418239]
[1673108580465,0.87318627,16946.0,16945.0,1.74509339]
[1673108580980,0.87318627,16946.0,16945.0,1.25418239]
[1673108581422,0.87318627,16946.0,16945.0,1.74509339]
[1673108582429,0.87318627,16946.0,16945.0,1.25418239]
[1673108582926,0.87318627,16946.0,16945.0,1.74509339]
[1673108583424,0.87318627,16946.0,16945.0,1.25418239]
[1673108583699,1.13847304,16946.0,16945.0,1.25418239]
[1673108583971,0.87291086,16946.0,16945.0,1.25418239]
[1673108584232,1.13844246,16946.0,16945.0,1.25418239]
[1673108585349,0.69597086,16946.0,16945.0,1.25418239]
[1673108588169,0.69597086,16946.0,16945.0,1.74509339]
[1673108588170,0.69597086,16946.0,16945.0,1.25418239]
[1673108588711,0.69597086,16946.0,16945.0,1.74509339]
[1673108592235,0.69597086,16946.0,16945.0,1.25418239]
[1673108592499,0.69597086,16946.0,16945.0,1.74509339]
[1673108593245,0.51904375,16946.0,16945.0,1.74509339]
[1673108593493,0.87297285,16946.0,16945.0,1.25418239]
[1673108593757,0.69597086,16946.0,16945.0,1.25418239]
[1673108594252,0.87297012,16946.0,16945.0,1.25418239]
[1673108594742,0.87297243,16946.0,16945.0,1.25418239]
[1673108595242,0.86395998,16946.0,16945.0,1.25418239]
[1673108595730,0.68695841,16946.0,16945.0,1.25418239]
[1673108596000,0.86395977,16946.0,16945.0,1.74509339]
[1673108597019,0.68695841,16946.0,16945.0,1.25418239]
[1673108599182,0.68695841,16946.0,16945.0,1.74509339]
[1673108600789,0.68695841,16946.0,16945.0,1.25418239]
[1673108605538,1.38695841,16946.0,16945.0,1.25407788]
[1673108605779,0.68695841,16946.0,16945.0,1.25407788]
[1673108607235,0.51003792,16946.0,16945.0,1.25407788]
[1673108608867,0.86396702,16946.0,16945.0,1.25407788]
[1673108609100,0.51003792,16946.0,16945.0,1.25407788]
[1673108610786,0.51003792,16946.0,16945.0,1.74498888]
[1673108612672,0.86396702,16946.0,16945.0,1.74498888]
[1673108613106,0.51003792,16946.0,16945.0,1.74498888]
[1673108615518,0.24450632,16946.0,16945.0,2.51365022]
[1673108615741,0.51003792,16946.0,16945.0,2.51365022]
[1673108615972,0.51003792,16946.0,16945.0,1.84569094]
[1673108622674,0.86396702,16946.0,16945.0,1.84569094]
[1673108622928,0.68676988,16946.0,16945.0,1.84569094]
[1673108624162,0.86379656,16946.0,16945.0,1.84569094]
[1673108624696,0.50986746,16946.0,16945.0,1.84569094]
[1673108625450,0.86379656,16946.0,16945.0,1.84569094]
[1673108626120,0.68676988,16946.0,16945.0,1.84569094]
[1673108629111,0.68176988,16946.0,16945.0,1.84569094]
[1673108629815,0.85863646,16946.0,16945.0,1.84569094]
[1673108630075,1.12415938,16946.0,16945.0,1.84569094]
[1673108630985,0.6817612,16946.0,16945.0,1.84569094]
[1673108635234,0.85877287,16946.0,16945.0,1.84569094]
[1673108635696,0.6817612,16946.0,16945.0,1.84569094]
[1673108635942,0.6767612,16946.0,16945.0,1.84569094]
[1673108650562,0.85378821,16946.0,16945.0,1.84569094]
[1673108650799,0.85378785,16946.0,16945.0,1.84569094]
[1673108651507,0.6767612,16946.0,16945.0,1.84569094]
[1673108654946,0.85379796,16946.0,16945.0,1.84569094]
[1673108655686,0.6767612,16946.0,16945.0,1.84569094]
[1673108656119,0.6767612,16946.0,16945.0,1.84558338]
[1673108656372,1.3767612,16946.0,16945.0,1.84558338]
[1673108656597,0.6767612,16946.0,16945.0,1.84558338]
[1673108657085,0.8538024,16946.0,16945.0,1.84558338]
[1673108657344,0.6767612,16946.0,16945.0,1.84558338]
[1673108657869,0.85380391,16946.0,16945.0,1.84558338]
[1673108658120,0.6767612,16946.0,16945.0,1.84558338]
[1673108659155,0.85381552,16946.0,16945.0,1.84558338]
[1673108659669,0.85381512,16946.0,16945.0,1.84558338]
[1673108660844,0.6767612,16946.0,16945.0,1.84558338]
[1673108666874,0.85381439,16946.0,16945.0,1.84558338]
[1673108667610,0.49988529,16946.0,16945.0,1.84558338]
[1673108670909,0.49988529,16946.0,16945.0,2.33649438]
[1673108671722,0.49988529,16946.0,16945.0,1.84558338]
[1673108672990,0.49488529,16946.0,16945.0,1.84558338]
[1673108673987,0.51458226,16946.0,16945.0,1.84558338]
[1673108676696,0.24905934,16946.0,16945.0,1.84558338]
[1673108676963,0.51458226,16946.0,16945.0,1.84558338]
[1673108678224,0.24905934,16946.0,16945.0,1.84558338]
[1673108678961,0.51458226,16946.0,16945.0,1.84558338]
[1673108679472,0.24905934,16946.0,16945.0,1.84558338]
[1673108681208,0.24896582,16946.0,16945.0,1.84558338]
[1673108682277,0.24896582,16946.0,16945.0,2.02263166]
[1673108683569,0.24896582,16946.0,16945.0,1.84558338]
[1673108685809,0.24896582,16946.0,16945.0,2.51354266]
[1673108686852,0.24896582,16946.0,16945.0,2.33649438]
[1673108687070,0.24896582,16946.0,16945.0,2.51354266]
[1673108687580,0.24896582,16946.0,16945.0,2.33649438]
[1673108687830,0.24896582,16946.0,16945.0,1.84558338]
[1673108688366,0.24896582,16946.0,16945.0,2.33649438]
[1673108688878,0.24896582,16946.0,16945.0,1.84558338]
[1673108689134,0.51448874,16946.0,16945.0,1.84558338]
[1673108689392,0.51448874,16946.0,16945.0,2.33649438]
[1673108689875,0.51448874,16946.0,16945.0,1.84558338]
[1673108690373,0.51448874,16946.0,16945.0,2.33649438]
[1673108690887,0.51448874,16946.0,16945.0,1.84558338]
[1673108691590,0.51448874,16946.0,16945.0,2.33649438]
[1673108692133,0.51448874,16946.0,16945.0,1.84558338]
[1673108692624,0.51448874,16946.0,16945.0,2.33649438]
[1673108693160,0.51448874,16946.0,16945.0,1.84558338]
[1673108693661,0.51448874,16946.0,16945.0,2.33649438]
[1673108693976,0.51448874,16946.0,16945.0,1.84558338]
[1673108694677,0.51448874,16946.0,16945.0,0.66561306]
[1673108694921,0.51448874,16946.0,16945.0,1.84590106]
[1673108695168,0.51448874,16946.0,16945.0,2.33681206]
[1673108696483,0.24896582,16946.0,16945.0,2.33681206]
[1673108696954,0.51448874,16946.0,16945.0,2.33681206]
[1673108697694,0.51448874,16946.0,16945.0,1.84590106]
[1673108698218,0.51448874,16946.0,16945.0,2.33681206]
[1673108699716,0.51448874,16946.0,16945.0,1.84590106]
[1673108700229,0.51448874,16946.0,16945.0,2.33681206]
[1673108701532,0.51448874,16946.0,16945.0,2.32933706]
[1673108701732,0.51448874,16946.0,16945.0,1.83842606]
[1673108702234,0.51448874,16946.0,16945.0,2.32933706]
[1673108702766,0.51448874,16946.0,16945.0,1.83842606]
[1673108704506,0.51448874,16946.0,16945.0,2.32933706]
[1673108712838,0.51448874,16946.0,16945.0,1.83842606]
[1673108714131,0.51448874,16946.0,16945.0,2.32933706]
[1673108715852,0.51448874,16946.0,16945.0,1.83842606]
[1673108716607,0.51448874,16946.0,16945.0,2.32933706]
[1673108717610,0.51448874,16946.0,16945.0,1.83842606]
[1673108718882,0.69136465,16946.0,16945.0,1.83842606]
[1673108723744,1.13376283,16946.0,16945.0,1.83834297]
[1673108724005,1.56823991,16946.0,16945.0,1.83834297]
[1673108724570,0.69139069,16946.0,16945.0,1.83834297]
[1673108725041,0.69139069,16946.0,16945.0,1.83334297]
[1673108725289,1.39139069,16946.0,16945.0,1.83334297]
[1673108725854,0.69139069,16946.0,16945.0,1.83334297]
[1673108740742,1.32689715,16946.0,16945.0,1.24172991]
[1673108741207,2.65783449,16946.0,16945.0,0.65158591]
[1673108741230,2.65783449,16946.0,16945.0,0.06144191]
[1673108741465,2.30390539,16946.0,16945.0,0.06144191]
[1673108741724,1.86150721,16946.0,16945.0,0.06144191]
[1673108742510,1.25382221,16946.0,16945.0,0.06144191]
[1673108742781,2.56150721,16946.0,16945.0,0.06144191]